[Event "NJSK 2023 Jeugd C"]
[Site "Almelo, Netherlands"]
[Date "2023.05.05"]
[Round "8.10"]
[White "Fallaux, Storm"]
[Black "Thijssen, Freek"]
[Result "1/2-1/2"]
[TimeControl "90min/40moves + 30min + 30sec/move"]
[WhiteElo "1650"]
[BlackElo "1644"]

1. e4 {[%clk 01:30:59]} e5 {[%clk 01:30:56]} {[%emt 00:00:04]} 2. Nf3 {[%clk
01:31:26]} {[%emt 00:00:03]} Nc6 {[%clk 01:31:21]} {[%emt 00:00:06]} 3. Bc4
{[%clk 01:31:53]} {[%emt 00:00:03]} Bc5 {[%clk 01:31:39]} {[%emt 00:00:13]} 4.
c3 {[%clk 01:32:17]} {[%emt 00:00:04]} Nf6 {[%clk 01:32:04]} {[%emt 00:00:04]}
5. d3 {[%clk 01:32:43]} {[%emt 00:00:04]} O-O {[%clk 01:30:38]} {[%emt
00:01:57]} 6. O-O {[%clk 01:33:03]} {[%emt 00:00:10]} d6 {[%clk 01:24:33]}
{[%emt 00:06:36]} 7. h3 {[%clk 01:33:19]} {[%emt 00:00:14]} h6 {[%clk
01:22:52]} {[%emt 00:02:11]} 8. Re1 {[%clk 01:33:36]} {[%emt 00:00:13]} Re8
{[%clk 01:19:06]} {[%emt 00:04:15]} 9. Nbd2 {[%clk 01:33:23]} {[%emt 00:00:44]}
Be6 {[%clk 01:16:33]} {[%emt 00:03:02]} 10. Bxe6 {[%clk 01:33:45]} {[%emt
00:00:08]} fxe6 {[%clk 01:14:51]} {[%emt 00:02:12]} 11. Nf1 {[%clk 01:33:27]}
{[%emt 00:00:47]} Bb6 {[%clk 01:01:44]} {[%emt 00:13:37]} 12. a4 {[%clk
01:30:00]} {[%emt 00:03:58]} a5 {[%clk 01:00:30]} {[%emt 00:01:44]} 13. Be3
{[%clk 01:30:01]} {[%emt 00:00:28]} Bxe3 {[%clk 00:51:08]} {[%emt 00:09:52]} 14.
Nxe3 {[%clk 01:29:53]} {[%emt 00:00:38]} d5 {[%clk 00:49:19]} {[%emt 00:02:20]}
15. Nf1 {[%clk 01:25:25]} {[%emt 00:04:58]} Qd6 {[%clk 00:43:19]} {[%emt
00:06:29]} 16. Ng3 {[%clk 01:21:06]} {[%emt 00:04:50]} Rad8 {[%clk 00:41:19]}
{[%emt 00:02:30]} 17. d4 {[%clk 01:21:04]} {[%emt 00:00:32]} dxe4 {[%clk
00:35:58]} {[%emt 00:05:51]} 18. dxe5 {[%clk 01:18:51]} {[%emt 00:02:43]} Qxd1
{[%clk 00:23:07]} {[%emt 00:13:21]} 19. Raxd1 {[%clk 01:19:11]} {[%emt
00:00:10]} exf3 {[%clk 00:22:53]} {[%emt 00:00:44]} 20. exf6 {[%clk 01:19:30]}
{[%emt 00:00:11]} gxf6 {[%clk 00:22:44]} {[%emt 00:00:39]} 21. Rxd8 {[%clk
01:19:32]} {[%emt 00:00:28]} Rxd8 {[%clk 00:18:42]} {[%emt 00:04:33]} 22. gxf3
{[%clk 01:18:54]} {[%emt 00:01:07]} Kf7 {[%clk 00:16:53]} {[%emt 00:02:19]} 23.
Kg2 {[%clk 01:14:51]} {[%emt 00:04:34]} Ne5 {[%clk 00:09:47]} {[%emt 00:07:37]}
24. Ne4 {[%clk 01:08:25]} {[%emt 00:06:55]} Rg8+ {[%clk 00:10:09]} {[%emt
00:00:09]} 25. Ng3 {[%clk 01:08:40]} {[%emt 00:00:15]} Rd8 {[%clk 00:06:00]}
{[%emt 00:04:38]} 1/2-1/2

[Event "NJSK 2023 Jeugd C"]
[Site "Almelo, Netherlands"]
[Date "2023.05.05"]
[Round "8.11"]
[White "Chua, Ethan"]
[Black "Vijver, Jonathan"]
[Result "0-1"]
[TimeControl "90min/40moves + 30min + 30sec/move"]
[WhiteElo "1776"]
[BlackElo "1781"]

1. e4 {[%clk 01:30:58]} {[%emt 00:00:02]} c5 {[%clk 01:30:49]} {[%emt
00:00:12]} 2. Nf3 {[%clk 01:31:25]} {[%emt 00:00:03]} d6 {[%clk 01:31:12]}
{[%emt 00:00:07]} 3. d4 {[%clk 01:31:51]} {[%emt 00:00:04]} cxd4 {[%clk
01:31:39]} {[%emt 00:00:01]} 4. Nxd4 {[%clk 01:32:18]} {[%emt 00:00:03]} Nf6
{[%clk 01:32:03]} {[%emt 00:00:06]} 5. Nc3 {[%clk 01:32:44]} {[%emt 00:00:04]}
a6 {[%clk 01:32:26]} {[%emt 00:00:08]} 6. Be3 {[%clk 01:33:05]} {[%emt
00:00:08]} e6 {[%clk 01:32:15]} {[%emt 00:00:41]} 7. f3 {[%clk 01:33:28]}
{[%emt 00:00:06]} b5 {[%clk 01:31:59]} {[%emt 00:00:47]} 8. g4 {[%clk
01:32:58]} {[%emt 00:00:59]} Bb7 {[%clk 01:27:53]} {[%emt 00:04:36]} 9. g5
{[%clk 01:32:52]} {[%emt 00:00:36]} Nfd7 {[%clk 01:26:39]} {[%emt 00:01:45]} 10.
Qd2 {[%clk 01:32:44]} {[%emt 00:00:37]} Ne5 {[%clk 01:22:36]} {[%emt 00:04:34]}
11. a3 {[%clk 01:31:44]} {[%emt 00:01:30]} Nbd7 {[%clk 01:19:06]} {[%emt
00:04:00]} 12. f4 {[%clk 01:30:39]} {[%emt 00:01:35]} Nc4 {[%clk 01:18:29]}
{[%emt 00:01:07]} 13. Bxc4 {[%clk 01:31:03]} {[%emt 00:00:06]} bxc4 {[%clk
01:18:57]} {[%emt 00:00:02]} 14. f5 {[%clk 01:26:53]} {[%emt 00:04:39]} e5
{[%clk 00:53:02]} {[%emt 00:26:26]} 15. Nde2 {[%clk 01:23:55]} {[%emt
00:03:28]} Rc8 {[%clk 00:40:57]} {[%emt 00:12:35]} 16. Ng3 {[%clk 01:21:40]}
{[%emt 00:02:44]} Nc5 {[%clk 00:34:37]} {[%emt 00:06:49]} 17. Rf1 {[%clk
01:20:48]} {[%emt 00:01:23]} Qa5 {[%clk 00:32:09]} {[%emt 00:02:59]} 18. f6
{[%clk 01:19:42]} {[%emt 00:01:36]} g6 {[%clk 00:31:38]} {[%emt 00:01:01]} 19.
h4 {[%clk 01:09:48]} {[%emt 00:10:24]} Ne6 {[%clk 00:30:28]} {[%emt 00:01:40]}
20. h5 {[%clk 00:56:43]} {[%emt 00:13:35]} Nc7 {[%clk 00:28:59]} {[%emt
00:02:00]} 21. Qf2 {[%clk 00:55:17]} {[%emt 00:01:55]} Na8 {[%clk 00:27:44]}
{[%emt 00:01:46]} 22. O-O-O {[%clk 00:53:54]} {[%emt 00:01:51]} d5 {[%clk
00:20:13]} {[%emt 00:08:04]} 23. exd5 {[%clk 00:39:45]} {[%emt 00:14:39]} Bxa3
{[%clk 00:20:26]} {[%emt 00:00:17]} 24. Nge4 {[%clk 00:39:49]} {[%emt
00:00:25]} Bb4 {[%clk 00:18:56]} {[%emt 00:02:01]} 25. Kb1 {[%clk 00:38:44]}
{[%emt 00:01:35]} Kd7 {[%clk 00:10:55]} {[%emt 00:08:31]} 26. Rh1 {[%clk
00:27:47]} {[%emt 00:11:26]} Rb8 {[%clk 00:08:42]} {[%emt 00:02:44]} 27. Ba7
{[%clk 00:22:01]} {[%emt 00:06:16]} Bxc3 {[%clk 00:06:59]} {[%emt 00:02:13]} 28.
Nxc3 {[%clk 00:22:22]} {[%emt 00:00:08]} Nc7 {[%clk 00:06:49]} {[%emt
00:00:40]} 29. Bxb8 {[%clk 00:11:25]} {[%emt 00:11:27]} Rxb8 {[%clk 00:07:12]}
{[%emt 00:00:07]} 30. Qd2 {[%clk 00:08:27]} {[%emt 00:03:28]} Ba8 {[%clk
00:06:07]} {[%emt 00:01:36]} 31. Ne4 {[%clk 00:05:47]} {[%emt 00:03:10]} Qb6
{[%clk 00:06:23]} {[%emt 00:00:14]} 32. Qc3 {[%clk 00:06:04]} {[%emt 00:00:12]}
Nb5 {[%clk 00:06:08]} {[%emt 00:00:45]} 33. Qxe5 {[%clk 00:06:11]} {[%emt
00:00:23]} Re8 {[%clk 00:05:45]} {[%emt 00:00:53]} 34. Qg3 {[%clk 00:03:34]}
{[%emt 00:03:07]} Rxe4 {[%clk 00:04:42]} {[%emt 00:01:33]} 35. Qg1 {[%clk
00:02:55]} {[%emt 00:01:10]} Nc3+ {[%clk 00:04:56]} {[%emt 00:00:17]} 36. Kc1
{[%clk 00:03:10]} {[%emt 00:00:15]} Ne2+ {[%clk 00:05:25]} 0-1

[Event "NJSK 2023 Jeugd C"]
[Site "Almelo, Netherlands"]
[Date "2023.05.05"]
[Round "8.12"]
[White "Frederiks, Jesse"]
[Black "Klein Tuente, Sam"]
[Result "0-1"]
[TimeControl "90min/40moves + 30min + 30sec/move"]
[WhiteElo "1510"]
[BlackElo "1478"]

1. d4 {[%clk 01:30:57]} d5 {[%clk 01:30:56]} {[%emt 00:00:05]} 2. c4 {[%clk
01:31:24]} {[%emt 00:00:04]} c6 {[%clk 01:31:20]} {[%emt 00:00:07]} 3. Nc3
{[%clk 01:31:45]} {[%emt 00:00:10]} Nf6 {[%clk 01:31:24]} {[%emt 00:00:25]} 4.
cxd5 {[%clk 01:32:00]} {[%emt 00:00:15]} cxd5 {[%clk 01:31:40]} {[%emt
00:00:15]} 5. Nf3 {[%clk 01:32:17]} {[%emt 00:00:11]} Nc6 {[%clk 01:31:58]}
{[%emt 00:00:13]} 6. Bf4 {[%clk 01:32:17]} {[%emt 00:00:28]} Qb6 {[%clk
01:30:04]} {[%emt 00:02:26]} 7. e3 {[%clk 01:28:35]} {[%emt 00:04:12]} Qxb2
{[%clk 01:27:12]} {[%emt 00:03:22]} 8. Nb5 {[%clk 01:26:51]} {[%emt 00:02:14]}
e5 {[%clk 01:22:01]} {[%emt 00:05:42]} 9. Be2 {[%clk 01:18:57]} {[%emt
00:08:23]} Bb4+ {[%clk 01:21:21]} {[%emt 00:01:10]} 10. Kf1 {[%clk 01:19:18]}
{[%emt 00:00:09]} exf4 {[%clk 01:20:51]} {[%emt 00:01:00]} 11. Nc7+ {[%clk
01:18:53]} {[%emt 00:00:55]} Ke7 {[%clk 01:20:18]} {[%emt 00:01:03]} 12. Nxa8
{[%clk 01:19:03]} {[%emt 00:00:19]} Ba5 {[%clk 01:17:21]} {[%emt 00:03:28]} 13.
Rb1 {[%clk 01:11:57]} {[%emt 00:07:35]} Qxa2 {[%clk 01:15:34]} {[%emt
00:02:18]} 14. Ra1 {[%clk 01:11:47]} {[%emt 00:00:40]} Qb2 {[%clk 01:15:47]}
{[%emt 00:00:17]} 15. Ne5 {[%clk 01:11:54]} {[%emt 00:00:23]} Qb4 {[%clk
01:09:13]} {[%emt 00:07:04]} 16. Nxc6+ {[%clk 01:09:47]} {[%emt 00:02:37]} bxc6
{[%emt 00:00:13]} 17. Ra4 {[%clk 01:06:17]} {[%emt 00:03:58]} Qc3 {[%emt
00:04:19]} 18. Qa1 {[%clk 01:04:25]} Qxa1+ {[%clk 01:06:06]} {[%emt 00:02:29]}
19. Rxa1 {[%clk 01:04:45]} {[%emt 00:00:09]} Bf5 {[%clk 01:05:04]} {[%emt
00:01:32]} 20. Rxa5 {[%clk 01:04:08]} {[%emt 00:01:06]} Rxa8 {[%clk 01:05:29]}
{[%emt 00:00:06]} 21. Bf3 {[%clk 01:01:56]} {[%emt 00:02:42]} Bd3+ {[%clk
01:01:40]} {[%emt 00:04:19]} 22. Ke1 {[%clk 01:01:42]} {[%emt 00:00:45]} Bb5
{[%clk 00:58:36]} {[%emt 00:03:33]} 23. Kd2 {[%clk 00:59:58]} {[%emt 00:02:14]}
fxe3+ {[%clk 00:58:49]} {[%emt 00:00:18]} 24. fxe3 {[%clk 01:00:20]} {[%emt
00:00:07]} Kd7 {[%clk 00:57:40]} {[%emt 00:01:39]} 25. Rc1 {[%clk 00:55:49]}
{[%emt 00:05:00]} a6 {[%clk 00:56:56]} {[%emt 00:01:14]} 26. Ke1 {[%clk
00:49:36]} {[%emt 00:06:43]} Re8 {[%clk 00:54:46]} {[%emt 00:02:40]} 27. Kd2
{[%clk 00:45:33]} {[%emt 00:04:33]} Kc7 {[%clk 00:53:51]} {[%emt 00:01:26]} 28.
g3 {[%clk 00:38:53]} {[%emt 00:07:10]} Kb6 {[%clk 00:51:21]} {[%emt 00:02:59]}
29. Raa1 {[%clk 00:39:07]} {[%emt 00:00:16]} Re7 {[%clk 00:51:08]} {[%emt
00:00:43]} 30. Rcb1 {[%clk 00:37:14]} {[%emt 00:02:23]} Ne8 {[%clk 00:50:57]}
{[%emt 00:00:41]} 31. Be2 {[%clk 00:36:13]} {[%emt 00:01:31]} Nd6 {[%clk
00:49:47]} {[%emt 00:01:41]} 32. Bd3 {[%clk 00:35:44]} {[%emt 00:00:59]} Re6
{[%clk 00:48:29]} {[%emt 00:01:47]} 33. Bxb5 {[%clk 00:35:01]} {[%emt
00:01:13]} cxb5 {[%clk 00:48:39]} {[%emt 00:00:21]} 34. Kd3 {[%clk 00:32:14]}
{[%emt 00:03:17]} Nc4 {[%clk 00:48:17]} {[%emt 00:00:52]} 35. Re1 {[%clk
00:32:37]} {[%emt 00:00:07]} Nd6 {[%emt 00:00:44]} 36. Rf1 {[%clk 00:32:04]}
{[%emt 00:01:00]} a5 {[%clk 00:47:48]} {[%emt 00:00:48]} 37. Rf2 {[%clk
00:31:54]} {[%emt 00:00:39]} b4 {[%clk 00:47:46]} {[%emt 00:00:33]} 38. g4
{[%clk 00:28:54]} {[%emt 00:03:29]} Nc4 {[%clk 00:46:17]} {[%emt 00:01:59]} 39.
Re1 {[%clk 00:27:31]} {[%emt 00:01:53]} Nd6 {[%clk 00:46:21]} {[%emt 00:00:27]}
40. h4 {[%clk 00:27:26]} {[%emt 00:00:35]} Kb5 {[%clk 00:46:08]} {[%emt
00:00:43]} 41. Kc2 {[%clk 00:26:52]} {[%emt 00:01:04]} a4 {[%clk 00:46:16]}
{[%emt 00:00:23]} 42. Kb1 {[%clk 00:27:01]} {[%emt 00:00:20]} b3 {[%clk
00:46:27]} {[%emt 00:00:19]} 43. Rc1 {[%clk 00:26:50]} {[%emt 00:00:41]} Nc4
{[%clk 00:45:50]} {[%emt 00:01:08]} 44. Rxf7 {[%clk 00:26:58]} {[%emt
00:00:21]} a3 {[%clk 00:45:58]} {[%emt 00:00:24]} 45. Rb7+ {[%clk 00:27:16]}
{[%emt 00:00:11]} Rb6 {[%clk 00:45:43]} {[%emt 00:00:45]} 46. Rxb6+ {[%clk
00:27:28]} {[%emt 00:00:18]} Kxb6 {[%clk 00:46:08]} {[%emt 00:00:05]} 47. Rh1
{[%clk 00:25:00]} {[%emt 00:02:57]} Kb5 {[%clk 00:44:59]} {[%emt 00:01:39]} 48.
Rd1 {[%clk 00:24:46]} {[%emt 00:00:45]} Kb4 {[%clk 00:44:45]} {[%emt 00:00:44]}
49. Rd3 {[%clk 00:24:31]} {[%emt 00:00:44]} Nb2 {[%clk 00:44:20]} {[%emt
00:00:55]} 50. Rd2 {[%clk 00:24:19]} {[%emt 00:00:42]} Na4 {[%clk 00:44:30]}
{[%emt 00:00:20]} 51. Rd3 {[%clk 00:24:28]} {[%emt 00:00:21]} Nc3+ {[%clk
00:44:23]} {[%emt 00:00:37]} 52. Kc1 {[%clk 00:24:04]} {[%emt 00:00:54]} b2+
{[%clk 00:44:44]} {[%emt 00:00:09]} 53. Kc2 {[%clk 00:24:28]} {[%emt 00:00:06]}
b1=Q+ {[%clk 00:45:05]} {[%emt 00:00:10]} 0-1

[Event "NJSK 2023 Jeugd C"]
[Site "Almelo, Netherlands"]
[Date "2023.05.05"]
[Round "8.13"]
[White "Etienne, Ghilon"]
[Black "Verwer, Oscar"]
[Result "1-0"]
[TimeControl "90min/40moves + 30min + 30sec/move"]
[WhiteElo "1673"]
[BlackElo "1549"]

1. d4 {[%clk 01:30:58]} {[%emt 00:00:03]} Nf6 {[%clk 01:30:56]} {[%emt
00:00:04]} 2. c4 {[%clk 01:31:21]} {[%emt 00:00:06]} g6 {[%clk 01:31:16]}
{[%emt 00:00:13]} 3. Nf3 {[%clk 01:31:45]} {[%emt 00:00:04]} Bg7 {[%clk
01:31:37]} {[%emt 00:00:08]} 4. g3 {[%clk 01:32:09]} {[%emt 00:00:07]} d5
{[%clk 01:31:29]} {[%emt 00:00:38]} 5. Bg2 {[%clk 01:32:20]} {[%emt 00:00:19]}
c5 {[%clk 01:31:26]} {[%emt 00:00:33]} 6. O-O {[%clk 01:29:55]} {[%emt
00:02:54]} cxd4 {[%clk 01:28:41]} {[%emt 00:03:16]} 7. cxd5 {[%clk 01:29:56]}
{[%emt 00:00:30]} O-O {[%clk 01:25:45]} {[%emt 00:03:26]} 8. Nxd4 {[%clk
01:24:45]} {[%emt 00:05:41]} Nxd5 {[%clk 01:24:29]} {[%emt 00:01:45]} 9. a3
{[%clk 01:17:46]} {[%emt 00:07:29]} Nc7 {[%clk 01:14:59]} {[%emt 00:09:59]} 10.
Nc2 {[%clk 01:15:15]} {[%emt 00:03:01]} Nc6 {[%clk 01:14:32]} {[%emt 00:00:57]}
11. Nc3 {[%clk 01:13:46]} {[%emt 00:02:00]} Be6 {[%clk 01:09:50]} {[%emt
00:05:12]} 12. Ne3 {[%clk 00:52:19]} {[%emt 00:21:57]} Rc8 {[%clk 00:51:51]}
{[%emt 00:18:29]} 13. Re1 {[%clk 00:35:15]} {[%emt 00:17:34]} Qxd1 {[%clk
00:48:20]} {[%emt 00:04:01]} 14. Rxd1 {[%clk 00:33:43]} {[%emt 00:02:02]} Bb3
{[%clk 00:48:30]} {[%emt 00:00:20]} 15. Rd2 {[%clk 00:32:47]} {[%emt 00:01:25]}
Rfd8 {[%clk 00:44:56]} {[%emt 00:04:04]} 16. Ned5 {[%clk 00:25:27]} {[%emt
00:07:51]} Nxd5 {[%clk 00:40:07]} {[%emt 00:05:19]} 17. Nxd5 {[%clk 00:25:31]}
{[%emt 00:00:26]} Bh6 {[%clk 00:38:53]} {[%emt 00:01:44]} 18. e3 {[%clk
00:19:49]} {[%emt 00:06:12]} e6 {[%clk 00:36:05]} {[%emt 00:03:18]} 19. Nf6+
{[%clk 00:19:15]} {[%emt 00:01:05]} Kg7 {[%clk 00:35:51]} {[%emt 00:00:44]} 20.
Ne4 {[%clk 00:19:35]} {[%emt 00:00:09]} Ne5 {[%clk 00:32:10]} {[%emt 00:04:12]}
21. Nd6 {[%clk 00:16:12]} {[%emt 00:03:53]} Rc2 {[%clk 00:30:18]} {[%emt
00:02:22]} 22. Nf5+ {[%clk 00:15:14]} {[%emt 00:01:29]} exf5 {[%clk 00:27:18]}
{[%emt 00:03:29]} 23. Rxd8 {[%clk 00:15:39]} {[%emt 00:00:06]} Ng4 {[%clk
00:27:26]} {[%emt 00:00:22]} 24. Rd2 {[%clk 00:15:28]} {[%emt 00:00:40]} Nxe3
{[%clk 00:26:21]} {[%emt 00:01:35]} 25. Rxc2 {[%clk 00:15:44]} {[%emt
00:00:15]} Nxc2 {[%clk 00:26:33]} {[%emt 00:00:18]} 26. Bxh6+ {[%clk 00:16:05]}
{[%emt 00:00:09]} Kxh6 {[%clk 00:26:58]} {[%emt 00:00:04]} 27. Rc1 {[%clk
00:16:19]} {[%emt 00:00:16]} b6 {[%clk 00:27:07]} {[%emt 00:00:22]} 28. Bd5
{[%clk 00:16:14]} {[%emt 00:00:35]} Nd4 {[%clk 00:25:29]} {[%emt 00:02:06]} 29.
Bc4 {[%clk 00:15:13]} {[%emt 00:01:32]} Nf3+ {[%clk 00:20:47]} {[%emt
00:05:12]} 30. Kg2 {[%clk 00:15:13]} {[%emt 00:00:31]} Ne1+ {[%clk 00:18:13]}
{[%emt 00:03:04]} 31. Rxe1 {[%clk 00:11:14]} {[%emt 00:04:29]} Bxc4 {[%clk
00:18:37]} {[%emt 00:00:06]} 32. Re7 {[%clk 00:11:25]} {[%emt 00:00:19]} a5
{[%clk 00:18:54]} {[%emt 00:00:13]} 33. b4 {[%clk 00:11:23]} {[%emt 00:00:32]}
axb4 {[%clk 00:19:01]} {[%emt 00:00:23]} 34. axb4 {[%clk 00:11:48]} {[%emt
00:00:05]} b5 {[%clk 00:19:25]} {[%emt 00:00:06]} 35. Kf3 {[%clk 00:12:03]}
{[%emt 00:00:14]} g5 {[%clk 00:19:16]} {[%emt 00:00:39]} 36. Ke3 {[%clk
00:11:42]} {[%emt 00:00:50]} Kg6 {[%clk 00:19:25]} {[%emt 00:00:21]} 37. Rc7
{[%clk 00:11:49]} {[%emt 00:00:22]} Ba2 {[%clk 00:18:03]} {[%emt 00:01:52]} 38.
Kd4 {[%clk 00:11:31]} {[%emt 00:00:49]} Kf6 {[%clk 00:17:36]} {[%emt 00:00:57]}
39. Rc5 {[%clk 00:11:23]} {[%emt 00:00:38]} Bc4 {[%clk 00:17:16]} {[%emt
00:00:50]} 40. Rxc4 {[%clk 00:09:35]} {[%emt 00:02:18]} bxc4 {[%clk 00:17:41]}
{[%emt 00:00:06]} 41. Kxc4 {[%clk 00:09:59]} {[%emt 00:00:06]} Ke7 {[%clk
00:17:54]} {[%emt 00:00:15]} 42. f4 {[%clk 00:10:11]} {[%emt 00:00:19]} f6
{[%clk 00:17:56]} {[%emt 00:00:28]} 43. Kd5 {[%clk 00:10:32]} {[%emt 00:00:09]}
1-0

[Event "NJSK 2023 Jeugd C"]
[Site "Almelo, Netherlands"]
[Date "2023.05.05"]
[Round "8.14"]
[White "Ten Kate, Gustav"]
[Black "Zootjes, Aäron"]
[Result "1/2-1/2"]
[TimeControl "90min/40moves + 30min + 30sec/move"]
[WhiteElo "1815"]
[BlackElo "1172"]

1. e4 {[%clk 01:30:56]} {[%emt 00:00:03]} c5 {[%clk 01:30:54]} {[%emt
00:00:08]} 2. Nc3 {[%clk 01:31:17]} {[%emt 00:00:08]} Nc6 {[%clk 01:31:12]}
{[%emt 00:00:12]} 3. g3 {[%clk 01:31:42]} {[%emt 00:00:05]} Nf6 {[%clk
01:31:12]} {[%emt 00:00:30]} 4. Bg2 {[%clk 01:32:02]} {[%emt 00:00:10]} e6
{[%clk 01:31:24]} {[%emt 00:00:18]} 5. d3 {[%clk 01:32:09]} {[%emt 00:00:23]}
d5 {[%clk 01:31:24]} {[%emt 00:00:30]} 6. f4 {[%clk 01:31:50]} {[%emt
00:00:49]} d4 {[%clk 01:30:57]} {[%emt 00:00:58]} 7. Nce2 {[%clk 01:30:59]}
{[%emt 00:01:20]} e5 {[%clk 01:30:47]} {[%emt 00:00:40]} 8. h3 {[%clk
01:30:33]} {[%emt 00:00:56]} h5 {[%clk 01:30:18]} {[%emt 00:00:58]} 9. Nf3
{[%clk 01:30:19]} {[%emt 00:00:44]} Bd6 {[%clk 01:28:36]} {[%emt 00:02:12]} 10.
fxe5 {[%clk 01:28:53]} {[%emt 00:01:56]} Nxe5 {[%clk 01:28:34]} {[%emt
00:00:33]} 11. Bf4 {[%clk 01:28:46]} {[%emt 00:00:36]} Qc7 {[%clk 01:27:14]}
{[%emt 00:01:50]} 12. Qd2 {[%clk 01:26:39]} {[%emt 00:02:38]} O-O {[%clk
01:24:09]} {[%emt 00:03:34]} 13. Bxe5 {[%clk 01:16:11]} {[%emt 00:10:57]} Bxe5
{[%clk 01:24:18]} {[%emt 00:00:22]} 14. Qg5 {[%clk 01:15:39]} {[%emt 00:01:02]}
Re8 {[%clk 01:21:33]} {[%emt 00:03:16]} 15. O-O-O {[%clk 01:11:53]} {[%emt
00:04:16]} b5 {[%clk 01:17:06]} {[%emt 00:04:57]} 16. g4 {[%clk 01:03:43]}
{[%emt 00:08:39]} Nh7 {[%clk 01:13:23]} {[%emt 00:04:13]} 17. Qxh5 {[%clk
00:58:39]} {[%emt 00:05:34]} g6 {[%clk 01:10:39]} {[%emt 00:03:14]} 18. Qh4
{[%clk 00:53:14]} {[%emt 00:05:56]} a5 {[%clk 01:05:18]} {[%emt 00:05:51]} 19.
Nxe5 {[%clk 00:48:44]} {[%emt 00:04:59]} Qxe5 {[%clk 01:04:21]} {[%emt
00:01:27]} 20. Qg3 {[%clk 00:47:40]} {[%emt 00:01:34]} Qxg3 {[%clk 01:04:22]}
21. Nxg3 {[%clk 00:48:10]} Ng5 {[%clk 01:03:22]} {[%emt 00:01:31]} 22. h4
{[%clk 00:46:35]} {[%emt 00:02:05]} Bxg4 {[%clk 01:03:27]} {[%emt 00:00:25]} 23.
hxg5 {[%clk 00:46:42]} {[%emt 00:00:22]} Bxd1 {[%clk 01:03:51]} {[%emt
00:00:06]} 24. Kxd1 {[%clk 00:46:26]} {[%emt 00:00:47]} Re5 {[%clk 01:03:25]}
{[%emt 00:00:56]} 25. Ne2 {[%clk 00:42:43]} {[%emt 00:04:13]} Rxg5 {[%clk
01:03:18]} {[%emt 00:00:36]} 26. Nf4 {[%clk 00:43:04]} {[%emt 00:00:10]} Rg4
{[%clk 01:03:42]} {[%emt 00:00:06]} 27. e5 {[%clk 00:32:23]} {[%emt 00:11:10]}
Rb8 {[%clk 01:02:46]} {[%emt 00:01:27]} 28. Nd5 {[%clk 00:31:54]} {[%emt
00:00:59]} Rxg2 {[%clk 01:02:55]} {[%emt 00:00:21]} 29. Nf6+ {[%clk 00:32:16]}
{[%emt 00:00:08]} Kg7 {[%clk 01:02:06]} {[%emt 00:01:18]} 30. Rh7+ {[%clk
00:32:41]} {[%emt 00:00:06]} Kf8 {[%clk 01:02:24]} {[%emt 00:00:11]} 31. Rh8+
{[%clk 00:33:08]} {[%emt 00:00:03]} Ke7 {[%clk 01:02:47]} {[%emt 00:00:07]} 32.
Rxb8 {[%clk 00:33:29]} {[%emt 00:00:09]} Ke6 {[%emt 00:01:45]} 33. Rxb5 {[%clk
00:29:04]} {[%emt 00:04:37]} Kxe5 {[%clk 01:02:07]} {[%emt 00:00:13]} 34. Ne4
{[%clk 00:29:05]} {[%emt 00:00:28]} Kf4 {[%clk 01:01:46]} {[%emt 00:00:52]} 35.
c4 {[%clk 00:19:41]} {[%emt 00:09:55]} dxc3 {[%clk 01:01:17]} {[%emt 00:01:00]}
36. Nxc3 {[%clk 00:18:38]} {[%emt 00:01:31]} Ke3 {[%clk 01:00:49]} {[%emt
00:00:58]} 37. Rxc5 {[%clk 00:17:45]} {[%emt 00:01:23]} Kxd3 {[%clk 01:00:58]}
{[%emt 00:00:22]} 38. Rd5+ {[%clk 00:17:56]} {[%emt 00:00:19]} Kc4 {[%clk
01:00:09]} {[%emt 00:01:19]} 39. Rd7 {[%clk 00:13:39]} {[%emt 00:04:46]}
1/2-1/2